[Event "Titled Tuesday Blitz November 2 2021"]
[White "Wagner, Dennis"]
[Black "Tsydypov, Zhamsaran"]
[WhiteFideId "24650684"]
[BlackFideId "4108566"]
[WhiteElo "2355"]
[BlackElo "2649"]
[Result "0-1"]
[Round "06"]
[TimeControl "180+1"]
[Date "2021.11.02"]
[WhiteClock "0:00:01"]
[BlackClock "0:01:00"]

1. e4 {[%clk 0:02:49]}  c5 {[%clk 0:02:58]} 2. Nf3 {[%clk 0:02:49]}  d6 {[%clk 0:02:59]} 3. Bb5+ {[%clk 0:02:49]}  Nd7 {[%clk 0:02:59]} 4. O-O {[%clk 0:02:49]}  Nf6 {[%clk 0:02:59]} 5. Re1 {[%clk 0:02:49]}  a6 {[%clk 0:02:59]} 6. Bf1 {[%clk 0:02:49]}  e6 {[%clk 0:02:58]} 7. c3 {[%clk 0:02:47]}  b5 {[%clk 0:02:59]} 8. d4 {[%clk 0:02:46]}  Bb7 {[%clk 0:02:58]} 9. Nbd2 {[%clk 0:02:45]}  Be7 {[%clk 0:02:58]} 10. Bd3 {[%clk 0:02:36]}  O-O {[%clk 0:02:57]} 11. Nf1 {[%clk 0:02:37]}  Nb6 {[%clk 0:02:54]} 12. Ng3 {[%clk 0:02:37]}  cxd4 {[%clk 0:02:50]} 13. cxd4 {[%clk 0:02:37]}  Rc8 {[%clk 0:02:51]} 14. b3 {[%clk 0:02:35]}  h6 {[%clk 0:02:43]} 15. h3 {[%clk 0:02:30]}  Nbd7 {[%clk 0:02:31]} 16. Bb2 {[%clk 0:02:26]}  Qb6 {[%clk 0:02:28]} 17. Qd2 {[%clk 0:02:23]}  Rfd8 {[%clk 0:02:25]} 18. Rad1 {[%clk 0:02:04]}  Bf8 {[%clk 0:02:24]} 19. Bc3 {[%clk 0:01:53]}  Re8 {[%clk 0:02:20]} 20. Ba5 {[%clk 0:01:52]}  Qa7 {[%clk 0:02:20]} 21. Bb1 {[%clk 0:01:48]}  Qa8 {[%clk 0:02:19]} 22. Re3 {[%clk 0:01:42]}  e5 {[%clk 0:02:06]} 23. d5 {[%clk 0:01:23]}  g6 {[%clk 0:02:06]} 24. Nh4 {[%clk 0:01:22]}  Nc5 {[%clk 0:01:52]} 25. Ngf5 {[%clk 0:01:19]}  gxf5 {[%clk 0:01:51]} 26. Nxf5 {[%clk 0:01:14]}  Kh7 {[%clk 0:01:51]} 27. Rf3 {[%clk 0:00:53]}  Nfxe4 {[%clk 0:01:24]} 28. Ng3 {[%clk 0:00:45]}  f5 {[%clk 0:01:24]} 29. Nxe4 {[%clk 0:00:12]}  fxe4 {[%clk 0:01:22]} 30. Rf7+ {[%clk 0:00:12]}  Kg6 {[%clk 0:01:20]} 31. Rf3 {[%clk 0:00:07]}  Bg7 {[%clk 0:01:12]} 32. b4 {[%clk 0:00:07]}  Nd3 {[%clk 0:01:11]} 33. Rxd3 {[%clk 0:00:07]}  exd3 {[%clk 0:01:11]} 34. Qxd3+ {[%clk 0:00:08]}  e4 {[%clk 0:01:11]} 35. Qg3+ {[%clk 0:00:08]}  Kh7 {[%clk 0:01:12]} 36. f3 {[%clk 0:00:06]}  Bxd5 {[%clk 0:01:09]} 37. Qxd6 {[%clk 0:00:07]}  Bb7 {[%clk 0:01:06]} 38. h4 {[%clk 0:00:04]}  Qb8 {[%clk 0:01:05]} 39. Qd2 {[%clk 0:00:02]}  Qg3 {[%clk 0:01:03]} 40. h5 {[%clk 0:00:01]}  Kh8 {[%clk 0:01:03]} 41. Qd7 {[%clk 0:00:01]}  exf3 {[%clk 0:01:01]} 42. Rd2 {[%clk 0:00:01]}  Re1# {[%clk 0:01:00]} 0-1


[Site "https://www.chess.com"]

[Event "Titled Tuesday Blitz November 2 2021"]
[White "Yeletsky, Ivan"]
[Black "Sviridov, Valery"]
[WhiteFideId "24180327"]
[BlackFideId "4120680"]
[WhiteElo "2352"]
[BlackElo "2454"]
[Result "0-1"]
[Round "06"]
[TimeControl "180+1"]
[Date "2021.11.02"]
[WhiteClock "0:00:05"]
[BlackClock "0:00:49"]

1. e4 {[%clk 0:03:00]}  Nf6 {[%clk 0:02:59]} 2. e5 {[%clk 0:03:01]}  Nd5 {[%clk 0:02:59]} 3. d4 {[%clk 0:03:01]}  d6 {[%clk 0:02:59]} 4. c4 {[%clk 0:03:01]}  Nb6 {[%clk 0:03:00]} 5. Nf3 {[%clk 0:03:01]}  Bg4 {[%clk 0:02:59]} 6. exd6 {[%clk 0:03:00]}  exd6 {[%clk 0:03:00]} 7. Be2 {[%clk 0:02:48]}  Be7 {[%clk 0:02:59]} 8. d5 {[%clk 0:02:47]}  O-O {[%clk 0:02:57]} 9. Nbd2 {[%clk 0:02:47]}  Bf6 {[%clk 0:02:54]} 10. O-O {[%clk 0:02:47]}  Na6 {[%clk 0:02:53]} 11. h3 {[%clk 0:02:36]}  Bh5 {[%clk 0:02:47]} 12. Bd3 {[%clk 0:02:12]}  Nc5 {[%clk 0:02:43]} 13. Bf5 {[%clk 0:02:12]}  Re8 {[%clk 0:02:39]} 14. Rb1 {[%clk 0:02:08]}  a5 {[%clk 0:02:38]} 15. Qc2 {[%clk 0:02:06]}  g6 {[%clk 0:02:23]} 16. Bg4 {[%clk 0:02:06]}  Bxg4 {[%clk 0:02:22]} 17. hxg4 {[%clk 0:02:07]}  h6 {[%clk 0:02:16]} 18. b3 {[%clk 0:02:06]}  Qd7 {[%clk 0:02:12]} 19. Nh2 {[%clk 0:02:04]}  Re2 {[%clk 0:02:09]} 20. Bb2 {[%clk 0:01:44]}  Bxb2 {[%clk 0:02:08]} 21. Qxb2 {[%clk 0:01:43]}  Rae8 {[%clk 0:02:07]} 22. Qd4 {[%clk 0:01:40]}  Ne4 {[%clk 0:02:06]} 23. Rbd1 {[%clk 0:01:33]}  a4 {[%clk 0:02:03]} 24. Qd3 {[%clk 0:01:27]}  Nxd2 {[%clk 0:01:57]} 25. Rxd2 {[%clk 0:01:28]}  R2e4 {[%clk 0:01:57]} 26. g3 {[%clk 0:01:25]}  Qe7 {[%clk 0:01:54]} 27. Kg2 {[%clk 0:01:24]}  Nd7 {[%clk 0:01:51]} 28. Rh1 {[%clk 0:01:15]}  Nc5 {[%clk 0:01:47]} 29. Qc3 {[%clk 0:01:11]}  Qe5 {[%clk 0:01:47]} 30. Qxe5 {[%clk 0:01:11]}  R4xe5 {[%clk 0:01:47]} 31. Nf3 {[%clk 0:01:11]}  Re2 {[%clk 0:01:39]} 32. bxa4 {[%clk 0:00:40]}  Rxd2 {[%clk 0:01:36]} 33. Nxd2 {[%clk 0:00:41]}  Re2 {[%clk 0:01:36]} 34. Rd1 {[%clk 0:00:40]}  Nxa4 {[%clk 0:01:29]} 35. Nf3 {[%clk 0:00:27]}  Rxa2 {[%clk 0:01:01]} 36. Re1 {[%clk 0:00:26]}  Kf8 {[%clk 0:00:59]} 37. g5 {[%clk 0:00:27]}  hxg5 {[%clk 0:00:57]} 38. Nxg5 {[%clk 0:00:28]}  Rc2 {[%clk 0:00:57]} 39. Re4 {[%clk 0:00:22]}  Nb6 {[%clk 0:00:57]} 40. Rf4 {[%clk 0:00:21]}  Rxc4 {[%clk 0:00:53]} 41. Rxf7+ {[%clk 0:00:21]}  Ke8 {[%clk 0:00:54]} 42. Rg7 {[%clk 0:00:20]}  Nxd5 {[%clk 0:00:53]} 43. Rxg6 {[%clk 0:00:21]}  b5 {[%clk 0:00:53]} 44. Rg8+ {[%clk 0:00:18]}  Kd7 {[%clk 0:00:53]} 45. f4 {[%clk 0:00:18]}  b4 {[%clk 0:00:53]} 46. Rg7+ {[%clk 0:00:08]}  Kc6 {[%clk 0:00:50]} 47. Rh7 {[%clk 0:00:04]}  Rc2+ {[%clk 0:00:50]} 48. Kf3 {[%clk 0:00:04]}  b3 {[%clk 0:00:50]} 49. Rh1 {[%clk 0:00:04]}  b2 {[%clk 0:00:50]} 50. Ne4 {[%clk 0:00:05]}  Rc1 {[%clk 0:00:49]} 0-1


[Site "https://www.chess.com"]

[Event "Titled Tuesday Blitz November 2 2021"]
[White "Zhigalko, Sergei"]
[Black "Martinez Alcantara, Jose Eduardo"]
[WhiteFideId "13502956"]
[BlackFideId "3805662"]
[WhiteElo "2662"]
[BlackElo "2690"]
[Result "1-0"]
[Round "06"]
[TimeControl "180+1"]
[Date "2021.11.02"]
[WhiteClock "0:00:05"]
[BlackClock "0:00:06"]

1. e4 {[%clk 0:03:00]}  c5 {[%clk 0:02:58]} 2. Nf3 {[%clk 0:03:01]}  d6 {[%clk 0:02:58]} 3. d4 {[%clk 0:03:01]}  cxd4 {[%clk 0:02:58]} 4. Qxd4 {[%clk 0:03:02]}  Nf6 {[%clk 0:02:52]} 5. Nc3 {[%clk 0:03:01]}  a6 {[%clk 0:02:39]} 6. Bc4 {[%clk 0:03:01]}  e6 {[%clk 0:02:23]} 7. Bf4 {[%clk 0:03:00]}  Nc6 {[%clk 0:02:20]} 8. Qd3 {[%clk 0:03:00]}  Ng4 {[%clk 0:02:15]} 9. Rd1 {[%clk 0:02:43]}  Qb6 {[%clk 0:02:07]} 10. O-O {[%clk 0:02:43]}  Nge5 {[%clk 0:02:06]} 11. Nxe5 {[%clk 0:02:37]}  Nxe5 {[%clk 0:01:58]} 12. Bxe5 {[%clk 0:02:12]}  dxe5 {[%clk 0:01:58]} 13. Bb3 {[%clk 0:01:38]}  Be7 {[%clk 0:01:37]} 14. Qg3 {[%clk 0:01:23]}  Bf6 {[%clk 0:01:18]} 15. Ba4+ {[%clk 0:01:22]}  Kf8 {[%clk 0:01:17]} 16. Kh1 {[%clk 0:01:21]}  Qc7 {[%clk 0:01:02]} 17. f4 {[%clk 0:00:37]}  b5 {[%clk 0:01:01]} 18. Bb3 {[%clk 0:00:36]}  exf4 {[%clk 0:00:59]} 19. Rxf4 {[%clk 0:00:32]}  Be5 {[%clk 0:00:53]} 20. Qg5 {[%clk 0:00:32]}  f6 {[%clk 0:00:38]} 21. Rf3 {[%clk 0:00:24]}  b4 {[%clk 0:00:18]} 22. Ne2 {[%clk 0:00:18]}  a5 {[%clk 0:00:19]} 23. Qg4 {[%clk 0:00:12]}  Ra6 {[%clk 0:00:17]} 24. Ba4 {[%clk 0:00:06]}  Rd6 {[%clk 0:00:16]} 25. Rdf1 {[%clk 0:00:05]}  Bd7 {[%clk 0:00:14]} 26. Qh5 {[%clk 0:00:02]}  Bxa4 {[%clk 0:00:10]} 27. Qxe5 {[%clk 0:00:02]}  Rc6 {[%clk 0:00:11]} 28. Rxf6+ {[%clk 0:00:01]}  Ke8 {[%clk 0:00:03]} 29. Rxe6+ {[%clk 0:00:02]}  Kd8 {[%clk 0:00:02]} 30. Qxc7+ {[%clk 0:00:01]}  Rxc7 {[%clk 0:00:03]} 31. Rd6+ {[%clk 0:00:01]}  Kc8 {[%clk 0:00:04]} 32. Nd4 {[%clk 0:00:01]}  Re8 {[%clk 0:00:04]} 33. g3 {[%clk 0:00:01]}  Rxe4 {[%clk 0:00:04]} 34. Kg1 {[%clk 0:00:01]}  Kb7 {[%clk 0:00:02]} 35. b3 {[%clk 0:00:01]}  Bd7 {[%clk 0:00:02]} 36. Rf4 {[%clk 0:00:02]}  Re1+ {[%clk 0:00:02]} 37. Rf1 {[%clk 0:00:02]}  Rd1 {[%clk 0:00:03]} 38. Rxd1 {[%clk 0:00:03]}  Bg4 {[%clk 0:00:03]} 39. Rd2 {[%clk 0:00:02]}  Rf7 {[%clk 0:00:03]} 40. Kg2 {[%clk 0:00:02]}  h5 {[%clk 0:00:03]} 41. h3 {[%clk 0:00:03]}  Bd7 {[%clk 0:00:03]} 42. Rf2 {[%clk 0:00:03]}  Re7 {[%clk 0:00:03]} 43. Nf5 {[%clk 0:00:03]}  Rf7 {[%clk 0:00:02]} 44. Nd4 {[%clk 0:00:04]}  Re7 {[%clk 0:00:02]} 45. Rd5 {[%clk 0:00:04]}  Be8 {[%clk 0:00:02]} 46. Rxa5 {[%clk 0:00:03]}  Kb6 {[%clk 0:00:03]} 47. Rg5 {[%clk 0:00:03]}  Rd7 {[%clk 0:00:02]} 48. Rd2 {[%clk 0:00:03]}  Kb7 {[%clk 0:00:02]} 49. h4 {[%clk 0:00:04]}  Bf7 {[%clk 0:00:02]} 50. Kf2 {[%clk 0:00:03]}  g6 {[%clk 0:00:02]} 51. Nf3 {[%clk 0:00:04]}  Rc7 {[%clk 0:00:03]} 52. Re5 {[%clk 0:00:04]}  Be8 {[%clk 0:00:04]} 53. Re4 {[%clk 0:00:04]}  Bb5 {[%clk 0:00:05]} 54. Rxb4 {[%clk 0:00:05]}  Kb6 {[%clk 0:00:06]} 55. a4 {[%clk 0:00:05]} 1-0


[Site "https://www.chess.com"]

[Event "Titled Tuesday Blitz November 2 2021"]
[White "Babazada, Khazar"]
[Black "Jobava, Baadur"]
[WhiteFideId "13413554"]
[BlackFideId "13601520"]
[WhiteElo "2302"]
[BlackElo "2731"]
[Result "1-0"]
[Round "07"]
[TimeControl "180+1"]
[Date "2021.11.02"]
[WhiteClock "0:00:19"]
[BlackClock "0:00:02"]

1. e4 {[%clk 0:02:58]}  e5 {[%clk 0:03:00]} 2. Nf3 {[%clk 0:02:57]}  Nc6 {[%clk 0:03:00]} 3. Bb5 {[%clk 0:02:55]}  a6 {[%clk 0:03:01]} 4. Ba4 {[%clk 0:02:54]}  b5 {[%clk 0:03:01]} 5. Bb3 {[%clk 0:02:54]}  Na5 {[%clk 0:03:01]} 6. O-O {[%clk 0:02:45]}  d6 {[%clk 0:02:59]} 7. d4 {[%clk 0:02:40]}  exd4 {[%clk 0:02:57]} 8. Nxd4 {[%clk 0:02:37]}  Bb7 {[%clk 0:02:54]} 9. Qe1 {[%clk 0:02:37]}  Nxb3 {[%clk 0:02:50]} 10. Nxb3 {[%clk 0:02:34]}  Rb8 {[%clk 0:02:37]} 11. Nc3 {[%clk 0:02:33]}  Be7 {[%clk 0:02:32]} 12. e5 {[%clk 0:02:24]}  Nh6 {[%clk 0:02:25]} 13. Bxh6 {[%clk 0:02:19]}  gxh6 {[%clk 0:02:25]} 14. Rd1 {[%clk 0:02:19]}  Rg8 {[%clk 0:02:08]} 15. f3 {[%clk 0:02:14]}  Kf8 {[%clk 0:02:06]} 16. Nd5 {[%clk 0:02:09]}  Bh4 {[%clk 0:01:44]} 17. Qe4 {[%clk 0:02:06]}  c6 {[%clk 0:01:30]} 18. Nf4 {[%clk 0:01:42]}  d5 {[%clk 0:01:29]} 19. Qf5 {[%clk 0:01:35]}  Bc8 {[%clk 0:01:26]} 20. Qh5 {[%clk 0:01:25]}  Qg5 {[%clk 0:01:24]} 21. Qxg5 {[%clk 0:01:23]}  hxg5 {[%clk 0:01:22]} 22. Nd3 {[%clk 0:01:23]}  g4 {[%clk 0:01:22]} 23. f4 {[%clk 0:01:20]}  Bd8 {[%clk 0:01:14]} 24. f5 {[%clk 0:01:18]}  Bb6+ {[%clk 0:01:15]} 25. Kh1 {[%clk 0:01:13]}  Rg5 {[%clk 0:01:15]} 26. e6 {[%clk 0:01:11]}  Rb7 {[%clk 0:01:08]} 27. Rde1 {[%clk 0:01:08]}  Re7 {[%clk 0:01:04]} 28. Nbc5 {[%clk 0:01:04]}  g3 {[%clk 0:01:00]} 29. h3 {[%clk 0:00:57]}  fxe6 {[%clk 0:00:45]} 30. fxe6+ {[%clk 0:00:58]}  Kg7 {[%clk 0:00:43]} 31. Rf3 {[%clk 0:00:57]}  Rg6 {[%clk 0:00:41]} 32. Ree3 {[%clk 0:00:48]}  Bxe6 {[%clk 0:00:33]} 33. Rxg3 {[%clk 0:00:45]}  Rxg3 {[%clk 0:00:32]} 34. Rxg3+ {[%clk 0:00:45]}  Kf8 {[%clk 0:00:29]} 35. Rf3+ {[%clk 0:00:45]}  Bf7 {[%clk 0:00:27]} 36. b4 {[%clk 0:00:44]}  a5 {[%clk 0:00:26]} 37. a3 {[%clk 0:00:36]}  axb4 {[%clk 0:00:26]} 38. axb4 {[%clk 0:00:37]}  Ke8 {[%clk 0:00:26]} 39. Rf6 {[%clk 0:00:34]}  Rc7 {[%clk 0:00:21]} 40. Ne5 {[%clk 0:00:32]}  Ra7 {[%clk 0:00:16]} 41. g4 {[%clk 0:00:23]}  Bg6 {[%clk 0:00:09]} 42. Rxc6 {[%clk 0:00:21]}  Bxc5 {[%clk 0:00:08]} 43. Rxc5 {[%clk 0:00:22]}  Ra2 {[%clk 0:00:07]} 44. Nxg6 {[%clk 0:00:20]}  hxg6 {[%clk 0:00:08]} 45. Rxd5 {[%clk 0:00:20]}  Rxc2 {[%clk 0:00:08]} 46. Rxb5 {[%clk 0:00:21]}  Ke7 {[%clk 0:00:08]} 47. Rb6 {[%clk 0:00:21]}  g5 {[%clk 0:00:08]} 48. Rg6 {[%clk 0:00:20]}  Rc1+ {[%clk 0:00:06]} 49. Kg2 {[%clk 0:00:20]}  Rc2+ {[%clk 0:00:07]} 50. Kg1 {[%clk 0:00:20]}  Rc1+ {[%clk 0:00:07]} 51. Kf2 {[%clk 0:00:20]}  Rc2+ {[%clk 0:00:07]} 52. Ke3 {[%clk 0:00:20]}  Rc3+ {[%clk 0:00:08]} 53. Kd4 {[%clk 0:00:20]}  Rxh3 {[%clk 0:00:08]} 54. Rxg5 {[%clk 0:00:20]}  Rg3 {[%clk 0:00:07]} 55. Kc4 {[%clk 0:00:20]}  Kf6 {[%clk 0:00:07]} 56. Rf5+ {[%clk 0:00:20]}  Ke6 {[%clk 0:00:07]} 57. Rf4 {[%clk 0:00:21]}  Kd6 {[%clk 0:00:06]} 58. b5 {[%clk 0:00:20]}  Rg1 {[%clk 0:00:04]} 59. Rf6+ {[%clk 0:00:20]}  Ke5 {[%clk 0:00:02]} 60. Rg6 {[%clk 0:00:19]} 1-0


[Site "https://www.chess.com"]

[Event "Titled Tuesday Blitz November 2 2021"]
[White "Balabayeva, Xeniya"]
[Black "Matinian, Nikita"]
[WhiteFideId "13719688"]
[BlackFideId "24129100"]
[WhiteElo "1965"]
[BlackElo "2464"]
[Result "0-1"]
[Round "07"]
[TimeControl "180+1"]
[Date "2021.11.02"]
[WhiteClock "0:00:03"]
[BlackClock "0:00:36"]

1. e4 {[%clk 0:03:00]}  e5 {[%clk 0:02:59]} 2. Nf3 {[%clk 0:03:00]}  Nc6 {[%clk 0:02:59]} 3. Bb5 {[%clk 0:03:00]}  a6 {[%clk 0:02:59]} 4. Ba4 {[%clk 0:02:59]}  Nf6 {[%clk 0:02:59]} 5. O-O {[%clk 0:02:58]}  Be7 {[%clk 0:02:59]} 6. Bxc6 {[%clk 0:02:51]}  dxc6 {[%clk 0:02:59]} 7. d3 {[%clk 0:02:48]}  Nd7 {[%clk 0:02:59]} 8. Nbd2 {[%clk 0:02:33]}  b5 {[%clk 0:02:50]} 9. Re1 {[%clk 0:02:20]}  O-O {[%clk 0:02:49]} 10. Nf1 {[%clk 0:02:14]}  c5 {[%clk 0:02:48]} 11. Ng3 {[%clk 0:02:07]}  Bd6 {[%clk 0:02:42]} 12. a4 {[%clk 0:01:58]}  bxa4 {[%clk 0:02:39]} 13. Rxa4 {[%clk 0:01:57]}  Nb6 {[%clk 0:02:39]} 14. Ra1 {[%clk 0:01:55]}  c4 {[%clk 0:02:39]} 15. h3 {[%clk 0:01:44]}  cxd3 {[%clk 0:02:34]} 16. Qxd3 {[%clk 0:01:43]}  Be6 {[%clk 0:02:29]} 17. b3 {[%clk 0:01:38]}  Bb4 {[%clk 0:02:25]} 18. Rd1 {[%clk 0:01:33]}  Qxd3 {[%clk 0:02:25]} 19. Rxd3 {[%clk 0:01:32]}  f6 {[%clk 0:02:26]} 20. Bd2 {[%clk 0:01:27]}  a5 {[%clk 0:02:22]} 21. Rd1 {[%clk 0:01:13]}  Rfd8 {[%clk 0:02:12]} 22. Bxb4 {[%clk 0:01:03]}  Rxd3 {[%clk 0:02:11]} 23. Rxd3 {[%clk 0:01:03]}  axb4 {[%clk 0:02:12]} 24. Kf1 {[%clk 0:01:02]}  Ra2 {[%clk 0:02:00]} 25. Ne1 {[%clk 0:00:57]}  Kf7 {[%clk 0:02:00]} 26. Ke2 {[%clk 0:00:54]}  g6 {[%clk 0:01:58]} 27. Re3 {[%clk 0:00:43]}  c5 {[%clk 0:01:56]} 28. Kd1 {[%clk 0:00:20]}  c4 {[%clk 0:01:50]} 29. bxc4 {[%clk 0:00:21]}  Nxc4 {[%clk 0:01:50]} 30. Rf3 {[%clk 0:00:21]}  Na3 {[%clk 0:01:23]} 31. Nf1 {[%clk 0:00:19]}  Ra1+ {[%clk 0:01:19]} 32. Kd2 {[%clk 0:00:19]}  Nb1+ {[%clk 0:01:11]} 33. Kd3 {[%clk 0:00:16]}  Nc3 {[%clk 0:01:08]} 34. Re3 {[%clk 0:00:12]}  Ra7 {[%clk 0:00:56]} 35. Kd2 {[%clk 0:00:11]}  Ra1 {[%clk 0:00:55]} 36. Kd3 {[%clk 0:00:11]}  Ke7 {[%clk 0:00:55]} 37. Nd2 {[%clk 0:00:10]}  Ra7 {[%clk 0:00:52]} 38. Rg3 {[%clk 0:00:08]}  Ra1 {[%clk 0:00:41]} 39. Nef3 {[%clk 0:00:07]}  Ra3 {[%clk 0:00:37]} 40. Nc4 {[%clk 0:00:05]}  Bxc4+ {[%clk 0:00:36]} 41. Kxc4 {[%clk 0:00:05]}  Nxe4 {[%clk 0:00:37]} 42. Rg4 {[%clk 0:00:04]}  f5 {[%clk 0:00:37]} 43. Rh4 {[%clk 0:00:04]}  Rc3+ {[%clk 0:00:35]} 44. Kxb4 {[%clk 0:00:04]}  Rxc2 {[%clk 0:00:36]} 45. Rxh7+ {[%clk 0:00:03]}  Kf6 {[%clk 0:00:36]} 46. Rb7 {[%clk 0:00:03]}  Rb2+ {[%clk 0:00:36]} 0-1


[Site "https://www.chess.com"]

[Event "Titled Tuesday Blitz November 2 2021"]
[White "Dzhaparov, Medet"]
[Black "Mirzoev, Azer"]
[WhiteFideId "13803689"]
[BlackFideId "13400304"]
[WhiteElo "1702"]
[BlackElo "2525"]
[Result "1/2-1/2"]
[Round "07"]
[TimeControl "180+1"]
[Date "2021.11.02"]
[WhiteClock "0:00:04"]
[BlackClock "0:00:14"]

1. d4 {[%clk 0:03:00]}  c6 {[%clk 0:03:00]} 2. c4 {[%clk 0:02:59]}  d5 {[%clk 0:03:00]} 3. Nc3 {[%clk 0:03:00]}  Nf6 {[%clk 0:03:00]} 4. cxd5 {[%clk 0:02:59]}  cxd5 {[%clk 0:03:00]} 5. Nf3 {[%clk 0:03:00]}  Nc6 {[%clk 0:03:00]} 6. Bf4 {[%clk 0:03:00]}  Ne4 {[%clk 0:02:59]} 7. e3 {[%clk 0:02:31]}  Nxc3 {[%clk 0:02:56]} 8. bxc3 {[%clk 0:02:31]}  e6 {[%clk 0:02:55]} 9. Bd3 {[%clk 0:02:31]}  Bd6 {[%clk 0:02:55]} 10. O-O {[%clk 0:02:30]}  Bxf4 {[%clk 0:02:54]} 11. exf4 {[%clk 0:02:30]}  O-O {[%clk 0:02:53]} 12. h4 {[%clk 0:02:19]}  h6 {[%clk 0:02:53]} 13. h5 {[%clk 0:02:08]}  Bd7 {[%clk 0:02:51]} 14. Qe2 {[%clk 0:01:51]}  Rc8 {[%clk 0:02:51]} 15. Rac1 {[%clk 0:01:48]}  Re8 {[%clk 0:02:47]} 16. g4 {[%clk 0:01:33]}  f5 {[%clk 0:02:47]} 17. g5 {[%clk 0:01:30]}  Qc7 {[%clk 0:02:45]} 18. Qe3 {[%clk 0:01:28]}  Kh7 {[%clk 0:02:37]} 19. Kh1 {[%clk 0:01:26]}  Rg8 {[%clk 0:02:35]} 20. Nh4 {[%clk 0:01:18]}  a6 {[%clk 0:02:26]} 21. Rg1 {[%clk 0:01:16]}  Rcf8 {[%clk 0:02:20]} 22. Rg3 {[%clk 0:01:08]}  Qd8 {[%clk 0:02:09]} 23. Rcg1 {[%clk 0:01:06]}  Ne7 {[%clk 0:01:43]} 24. gxh6 {[%clk 0:00:41]}  gxh6 {[%clk 0:01:43]} 25. Qe5 {[%clk 0:00:40]}  Rxg3 {[%clk 0:01:41]} 26. fxg3 {[%clk 0:00:15]}  Rg8 {[%clk 0:01:31]} 27. g4 {[%clk 0:00:12]}  Nc6 {[%clk 0:01:30]} 28. Qe1 {[%clk 0:00:13]}  Qf6 {[%clk 0:01:26]} 29. Ng6 {[%clk 0:00:10]}  Be8 {[%clk 0:01:13]} 30. gxf5 {[%clk 0:00:09]}  exf5 {[%clk 0:01:12]} 31. Qb1 {[%clk 0:00:08]}  Bxg6 {[%clk 0:00:58]} 32. hxg6+ {[%clk 0:00:07]}  Kh8 {[%clk 0:00:59]} 33. Bxf5 {[%clk 0:00:03]}  Qh4+ {[%clk 0:00:49]} 34. Kg2 {[%clk 0:00:03]}  Qxf4 {[%clk 0:00:48]} 35. Qd3 {[%clk 0:00:03]}  Ne7 {[%clk 0:00:45]} 36. Rf1 {[%clk 0:00:03]}  Qg5+ {[%clk 0:00:44]} 37. Kh2 {[%clk 0:00:02]}  Rf8 {[%clk 0:00:29]} 38. Bh3 {[%clk 0:00:02]}  Rxf1 {[%clk 0:00:19]} 39. Qxf1 {[%clk 0:00:03]}  Nxg6 {[%clk 0:00:19]} 40. Qf7 {[%clk 0:00:02]}  b5 {[%clk 0:00:14]} 41. Qe8+ {[%clk 0:00:02]}  Kg7 {[%clk 0:00:13]} 42. Qd7+ {[%clk 0:00:02]}  Ne7 {[%clk 0:00:13]} 43. Qe6 {[%clk 0:00:01]}  Qf6 {[%clk 0:00:12]} 44. Qe5 {[%clk 0:00:01]}  Qxe5+ {[%clk 0:00:12]} 45. dxe5 {[%clk 0:00:01]}  Nc6 {[%clk 0:00:12]} 46. Bc8 {[%clk 0:00:01]}  a5 {[%clk 0:00:12]} 47. Bb7 {[%clk 0:00:01]}  Nxe5 {[%clk 0:00:12]} 48. Bxd5 {[%clk 0:00:02]}  Kf6 {[%clk 0:00:13]} 49. Kg3 {[%clk 0:00:03]}  Kf5 {[%clk 0:00:12]} 50. a3 {[%clk 0:00:03]}  Nd3 {[%clk 0:00:10]} 51. Kf3 {[%clk 0:00:03]}  Ke5 {[%clk 0:00:10]} 52. Bc6 {[%clk 0:00:04]}  Nc5 {[%clk 0:00:09]} 53. Bxb5 {[%clk 0:00:04]}  Kd5 {[%clk 0:00:09]} 54. Ke3 {[%clk 0:00:04]}  Ke5 {[%clk 0:00:10]} 55. Be2 {[%clk 0:00:05]}  Ne4 {[%clk 0:00:10]} 56. c4 {[%clk 0:00:04]}  Nc5 {[%clk 0:00:10]} 57. Bf3 {[%clk 0:00:04]}  Ne6 {[%clk 0:00:10]} 58. Be2 {[%clk 0:00:04]}  Nc5 {[%clk 0:00:10]} 59. Bf3 {[%clk 0:00:04]}  Na4 {[%clk 0:00:11]} 60. Be2 {[%clk 0:00:04]}  Nb6 {[%clk 0:00:10]} 61. c5 {[%clk 0:00:04]}  Nd5+ {[%clk 0:00:10]} 62. Kd2 {[%clk 0:00:04]}  Kd4 {[%clk 0:00:10]} 63. c6 {[%clk 0:00:04]}  Kc5 {[%clk 0:00:10]} 64. Bf3 {[%clk 0:00:04]}  Kxc6 {[%clk 0:00:10]} 65. Kd3 {[%clk 0:00:04]}  Kc5 {[%clk 0:00:10]} 66. Ke4 {[%clk 0:00:05]}  Nc3+ {[%clk 0:00:10]} 67. Kf5 {[%clk 0:00:06]}  Nb5 {[%clk 0:00:11]} 68. a4 {[%clk 0:00:06]}  Na3 {[%clk 0:00:12]} 69. Bd1 {[%clk 0:00:06]}  Kb4 {[%clk 0:00:12]} 70. Kg6 {[%clk 0:00:06]}  Nc4 {[%clk 0:00:13]} 71. Kxh6 {[%clk 0:00:06]}  Nb2 {[%clk 0:00:14]} 72. Bg4 {[%clk 0:00:06]}  Nxa4 {[%clk 0:00:15]} 73. Kg5 {[%clk 0:00:07]}  Nc3 {[%clk 0:00:15]} 74. Kf4 {[%clk 0:00:07]}  a4 {[%clk 0:00:15]} 75. Ke3 {[%clk 0:00:07]}  Nd5+ {[%clk 0:00:15]} 76. Kd2 {[%clk 0:00:06]}  a3 {[%clk 0:00:15]} 77. Kc1 {[%clk 0:00:05]}  Kc3 {[%clk 0:00:15]} 78. Kb1 {[%clk 0:00:04]}  Nb4 {[%clk 0:00:15]} 79. Be6 {[%clk 0:00:04]}  Nc2 {[%clk 0:00:12]} 80. Ka2 {[%clk 0:00:04]}  Kb4 {[%clk 0:00:13]} 81. Bf5 {[%clk 0:00:03]}  Nd4 {[%clk 0:00:12]} 82. Bd3 {[%clk 0:00:03]}  Nb5 {[%clk 0:00:13]} 83. Bxb5 {[%clk 0:00:03]}  Kxb5 {[%clk 0:00:14]} 84. Kxa3 {[%clk 0:00:04]} 1/2-1/2


[Site "https://www.chess.com"]